bitfinex-derivatives/quotes_ETHF0:USTF0_20230402
["timestamp","ask_amount","ask_price","bid_price","bid_amount"]
[1680451348630,0.87579948,1796.5,1796.4,2.002]
[1680451348929,0.87579948,1796.6,1796.4,2.87245168]
[1680451349227,0.87579948,1796.6,1796.5,0.497]
[1680451349825,0.87579948,1796.6,1796.5,1.497]
[1680451351632,0.08718942,1796.7,1796.5,5.2058]
[1680451351928,0.08718942,1796.7,1796.6,2.86174149]
[1680451353329,0.87579948,1796.9,1796.7,1.0]
[1680451353632,0.87579948,1796.9,1796.8,0.497]
[1680451354428,0.29736006,1796.9,1796.8,0.497]
[1680451354937,0.29736006,1796.9,1796.8,1.36574149]
[1680451355429,0.87579948,1797.1,1796.8,1.36574149]
[1680451355630,0.87579948,1797.1,1797.0,0.497]
[1680451355829,0.87579948,1797.1,1797.0,1.497]
[1680451356133,0.87579948,1797.2,1797.0,1.994]
[1680451356433,1.16573437,1797.3,1797.1,1.002]
[1680451356434,0.87579948,1797.3,1797.1,1.002]
[1680451356631,0.87579948,1797.3,1797.2,0.997]
[1680451357135,0.87579948,1797.3,1797.2,0.667]
[1680451357328,0.87579948,1797.3,1797.2,1.667]
[1680451357634,0.87579948,1797.3,1797.2,0.667]
[1680451357832,0.87579948,1797.3,1797.2,1.667]
[1680451358032,0.87579948,1797.3,1797.2,0.667]
[1680451358545,0.87579948,1797.4,1797.2,0.667]
[1680451359143,0.87579948,1797.4,1797.1,3.2078]
[1680451359144,0.87579948,1797.4,1797.3,0.665]
[1680451359840,1.42466102,1797.5,1797.3,0.665]
[1680451360042,1.42466102,1797.5,1797.4,0.665]
[1680451360343,0.87579948,1797.5,1797.4,0.665]
[1680451360543,0.87579948,1797.6,1797.4,0.665]
[1680451360844,0.87579948,1797.6,1797.2,1.0]
[1680451360845,0.87579948,1797.6,1797.5,0.663]
[1680451361639,0.87579948,1797.7,1797.5,0.663]
[1680451362150,0.87579948,1797.7,1797.6,0.664]
[1680451362348,0.87579948,1797.7,1797.6,0.721985]
[1680451363347,0.87579948,1797.8,1797.6,0.721985]
[1680451363751,0.87579948,1797.7,1797.6,0.721985]
[1680451364148,0.87579948,1797.8,1797.6,0.721985]
[1680451364844,4.08359948,1797.9,1797.7,0.667]
[1680451365549,1.43896976,1798.0,1797.8,0.664]
[1680451365851,1.43896976,1798.0,1797.9,0.663]
[1680451366440,1.43896976,1798.0,1797.8,1.665]
[1680451366646,0.56317028,1798.0,1797.8,0.665]
[1680451366847,4.08359948,1798.1,1797.8,0.665]
[1680451368059,1.87579948,1798.0,1797.8,0.665]
[1680451368362,1.0,1797.9,1797.8,0.665]
[1680451369462,1.0,1798.0,1797.8,0.95905235]
[1680451370057,5.6330102,1798.1,1797.8,0.95905235]
[1680451370255,4.6330102,1798.1,1797.8,0.95905235]
[1680451370763,6.2950102,1798.1,1797.8,0.29405235]
[1680451371061,6.2950102,1798.1,1797.6,0.663]
[1680451371259,5.6330102,1798.1,1797.7,0.664]
[1680451371764,1.0,1798.0,1797.7,0.664]
[1680451372263,1.0,1798.0,1797.6,0.667]
[1680451376869,1.666,1798.0,1797.5,3.2078]
[1680451377764,3.2078,1797.9,1797.4,0.667]
[1680451377965,1.0,1797.8,1797.4,0.667]
[1680451378272,3.8698,1797.7,1797.2,1.22735034]
[1680451378570,3.2078,1797.5,1797.2,1.22735034]
[1680451380869,3.2078,1797.5,1797.2,2.22735034]
[1680451381266,0.662,1797.7,1797.2,2.22735034]
[1680451381667,0.662,1797.7,1797.3,3.2078]
[1680451382266,3.2078,1797.8,1797.4,0.665]
[1680451383273,3.2078,1797.8,1797.4,1.665]
[1680451384160,3.2078,1797.8,1797.5,0.667]
[1680451385873,4.08359948,1798.0,1797.5,0.667]
[1680451386075,5.08359948,1798.0,1797.5,0.667]
[1680451386475,0.87579948,1797.9,1797.5,0.667]
[1680451387478,0.87579948,1797.9,1797.5,3.8748]
[1680451388273,0.87579948,1797.9,1797.5,0.667]
[1680451392378,0.87579948,1797.9,1797.7,0.665]
[1680451392583,0.87579948,1797.8,1797.7,0.665]
[1680451392882,0.87579948,1797.9,1797.7,0.665]
[1680451393387,0.87579948,1797.9,1797.8,0.10236996]
[1680451393579,0.87104886,1797.9,1797.8,0.61204802]
[1680451393776,1.7108092,1798.1,1797.8,0.76291527]
[1680451393777,0.87104886,1798.0,1797.8,0.76291527]
[1680451394082,0.87104886,1798.0,1797.9,0.663]
[1680451394678,1.7108092,1798.1,1797.9,0.663]
[1680451394874,14.50807062,1798.0,1797.8,0.81386725]
[1680451395082,0.87167237,1797.9,1797.8,0.81386725]
[1680451398282,0.87167237,1797.9,1797.8,0.81786725]
[1680451398582,1.16139848,1798.0,1797.8,0.81786725]
[1680451399182,1.16139848,1798.0,1797.9,0.663]
[1680451399386,14.5076915,1798.0,1797.9,0.663]
[1680451400484,14.79804112,1798.0,1797.9,0.663]
[1680451401087,13.34629302,1798.0,1797.9,0.663]
[1680451401282,14.5108859,1798.0,1797.9,0.80093619]
[1680451404091,1.16459288,1798.0,1797.9,4.00873619]
[1680451406690,1.16459288,1798.0,1797.9,0.80093619]
[1680451411597,1.16459288,1798.0,1797.9,0.13793619]
[1680451411995,1.16459288,1798.0,1797.7,0.667]
[1680451412194,1.16459288,1798.0,1797.5,0.86874149]
[1680451412195,3.8698,1797.8,1797.5,0.86874149]
[1680451412398,0.87369985,1797.7,1797.5,0.86874149]
[1680451412600,0.87369985,1797.6,1797.3,1.52974149]
[1680451412900,0.87369985,1797.6,1797.3,0.661]
[1680451413396,1.0,1797.5,1797.3,0.661]
[1680451413799,0.04693691,1797.4,1797.2,3.09609183]
[1680451413998,0.04693691,1797.4,1797.3,0.662]
[1680451414400,0.87369985,1797.6,1797.3,1.662]
[1680451414705,0.87369985,1797.6,1797.4,0.667]
[1680451415201,0.87369985,1797.7,1797.4,0.667]
[1680451416206,0.87369985,1797.6,1797.4,0.667]
[1680451416509,1.87369985,1797.7,1797.4,0.667]
[1680451416701,4.37239288,1797.8,1797.4,0.667]
[1680451416702,0.87369985,1797.6,1797.4,0.667]
[1680451417305,4.08149985,1797.6,1797.2,2.09609183]
[1680451417495,0.92058853,1797.5,1797.2,1.22735034]
[1680451417699,0.92058853,1797.5,1797.2,0.667]
[1680451418004,1.92058853,1797.5,1797.2,0.667]
[1680451421301,4.08149985,1797.4,1797.2,0.667]
[1680451422203,3.2078,1797.4,1797.2,0.662]
[1680451425498,0.92058853,1797.5,1797.2,0.662]
[1680451429510,0.99009375,1797.5,1797.2,0.662]
[1680451432197,0.99009375,1797.5,1797.3,0.667]
[1680451432399,3.2078,1797.4,1797.1,0.662]
[1680451432809,4.2078,1797.4,1797.1,0.662]
[1680451433412,5.08149985,1797.4,1797.1,0.662]
[1680451433602,5.08149985,1797.4,1797.1,0.668]
[1680451433808,4.08149985,1797.4,1797.1,0.668]
[1680451434005,3.2078,1797.4,1797.1,0.668]
[1680451434408,1.0,1797.3,1796.9,1.53674149]
[1680451434608,3.2078,1797.2,1796.9,0.668]
[1680451434811,1.0,1797.1,1796.9,0.668]
[1680451435409,3.2078,1797.0,1796.7,1.21561201]
[1680451435612,3.2078,1797.0,1796.7,0.668]
[1680451438810,1.0,1796.9,1796.7,0.668]
[1680451439012,3.2078,1796.8,1796.4,2.33933735]
[1680451439315,3.2078,1796.8,1796.4,0.662]
[1680451439517,3.2078,1796.8,1796.4,1.22522522]
[1680451440410,1.0,1796.7,1796.4,0.662]
[1680451440808,3.2078,1796.6,1796.4,0.662]
[1680451442111,3.2078,1796.6,1796.3,0.667]
[1680451444417,0.40063758,1796.5,1796.3,0.667]
[1680451444819,3.2078,1796.8,1796.4,0.668]
[1680451447918,3.2078,1796.6,1796.4,0.668]
[1680451449222,3.2078,1796.6,1796.4,0.662]
[1680451449725,3.2078,1796.6,1796.2,2.21699005]
[1680451450019,3.2078,1796.6,1796.2,1.21699005]
[1680451451424,3.2078,1796.6,1796.5,0.667]
[1680451451620,3.2078,1796.9,1796.5,0.667]
[1680451451815,3.2078,1796.9,1796.5,1.667]
[1680451452015,3.2078,1796.9,1796.5,0.667]
[1680451452217,1.0,1796.8,1796.4,0.667]
[1680451452419,3.2078,1796.7,1796.4,0.667]
[1680451452824,3.2078,1796.5,1796.2,0.667]
[1680451457025,3.2078,1796.8,1796.4,0.667]
[1680451457222,3.2078,1796.8,1796.5,0.668]
[1680451459323,0.48495556,1796.7,1796.5,0.668]
[1680451468948,0.48495556,1796.7,1796.6,1.335]
[1680451469142,0.48495556,1796.7,1796.6,2.335]
[1680451469447,1.14485502,1797.0,1796.6,2.335]
[1680451469647,1.14485502,1797.0,1796.8,0.667]
[1680451469849,1.14485502,1797.0,1796.8,0.66391122]
[1680451470047,0.58112911,1796.9,1796.8,0.66391122]
[1680451472154,0.58112911,1796.9,1796.5,3.2078]
[1680451472452,0.58112911,1796.9,1796.7,0.668]
[1680451474243,0.80471382,1796.8,1796.7,0.668]
[1680451475346,0.22358471,1796.8,1796.7,0.668]
[1680451475542,2.45482896,1796.9,1796.7,0.668]
[1680451475949,0.58112911,1796.8,1796.7,0.668]
[1680451476748,0.58112911,1796.8,1796.4,0.86874149]
[1680451476951,0.58112911,1796.8,1796.5,0.668]
[1680451477758,4.78892911,1796.7,1796.3,1.53274149]
[1680451478357,0.58112911,1796.6,1796.4,0.86874149]
[1680451480464,0.58112911,1796.6,1796.5,0.668]
[1680451480765,1.45482896,1796.7,1796.5,1.53674149]
[1680451481257,0.58112911,1796.6,1796.5,1.53674149]
[1680451483173,0.58112911,1796.6,1796.5,0.86874149]
[1680451483174,0.87369985,1796.6,1796.5,0.86874149]
[1680451483572,0.87369985,1796.6,1796.4,1.53274149]
[1680451483871,1.58345569,1796.5,1796.4,0.664]
[1680451485069,1.58345569,1796.5,1796.4,1.82631563]
[1680451485671,5.08149985,1796.5,1796.4,0.87391175]
[1680451485870,5.08149985,1796.5,1796.3,0.87391175]
[1680451486174,0.58358243,1796.4,1796.3,0.87391175]
[1680451489280,1.12447861,1796.4,1796.3,0.87391175]
[1680451490873,1.11740156,1796.4,1796.3,0.87391175]
[1680451499682,1.99110141,1796.4,1796.3,0.87391175]
[1680451500181,1.41459603,1796.4,1796.2,1.54191175]
[1680451500780,3.2078,1796.3,1796.2,1.54191175]
[1680451501484,4.08149985,1796.3,1796.2,0.668]
[1680451502089,4.08149985,1796.3,1796.1,1.53991175]
[1680451502979,1.0,1796.2,1796.1,1.53991175]
[1680451504178,5.08149985,1796.3,1796.1,1.53991175]
[1680451504582,2.41459603,1796.4,1796.1,1.53991175]
[1680451505290,5.62239603,1796.4,1796.1,1.53991175]
[1680451506385,5.45884724,1796.4,1796.1,1.53991175]
[1680451507283,5.45884724,1796.4,1796.1,1.37091175]
[1680451507694,4.45884724,1796.4,1796.1,1.37091175]
[1680451510301,0.37734739,1796.4,1796.3,0.501]
[1680451510609,0.37734739,1796.4,1796.3,1.501]
[1680451510797,0.37734739,1796.4,1796.3,0.501]
[1680451512705,0.37734739,1796.4,1796.3,1.37491175]
[1680451520610,0.37734739,1796.4,1796.3,0.501]
[1680451521509,0.37734739,1796.4,1796.3,1.37442384]
[1680451522002,0.37734739,1796.4,1796.3,0.501]
[1680451522310,0.37734739,1796.4,1796.3,1.66331563]
[1680451523913,0.37734739,1796.4,1796.3,1.37464237]
[1680451524803,3.58514739,1796.4,1796.3,1.37464237]
[1680451526811,3.58514739,1796.4,1796.3,1.87564237]
[1680451527517,0.37734739,1796.4,1796.3,1.87564237]
[1680451528211,0.37734739,1796.4,1796.3,1.002]
[1680451528511,0.37734739,1796.4,1796.3,1.87551706]
[1680451529010,0.37734739,1796.4,1796.3,1.002]
[1680451529208,0.37734739,1796.4,1796.3,2.16431563]
[1680451530508,0.87369985,1796.5,1796.3,2.16431563]
[1680451530815,0.87369985,1796.6,1796.4,2.37390787]
[1680451531107,0.87369985,1796.6,1796.4,1.37390787]
[1680451532112,0.87369985,1796.6,1796.5,0.499]
[1680451539510,0.87369985,1796.6,1796.5,1.37290787]
[1680451539811,0.87369985,1796.6,1796.5,1.87390787]
[1680451540003,0.87369985,1796.7,1796.5,1.87390787]
[1680451540315,0.87369985,1796.7,1796.6,0.498]
[1680451541516,0.99739902,1796.7,1796.6,0.498]
[1680451543621,0.12369917,1796.7,1796.6,0.498]
[1680451543818,1.87343726,1796.7,1796.6,0.498]
[1680451547112,2.87343726,1796.7,1796.6,0.498]
[1680451547309,1.99856977,1796.7,1796.5,0.501]
[1680451547520,0.8748428,1796.6,1796.5,0.501]
[1680451552218,0.8748428,1796.6,1796.5,1.37490787]
[1680451553022,0.8748428,1796.6,1796.5,1.87290787]
[1680451555624,1.87341257,1796.7,1796.5,1.87290787]
[1680451555821,2.16566619,1796.7,1796.6,0.501]
[1680451556224,0.99856977,1796.7,1796.6,0.501]
[1680451556427,2.16593102,1796.7,1796.6,0.501]
[1680451559734,0.99856977,1796.7,1796.6,0.501]
[1680451559925,14.35372569,1796.7,1796.6,0.501]
[1680451560232,0.99856977,1796.7,1796.6,0.501]
[1680451560424,14.35374397,1796.7,1796.6,0.501]
[1680451560628,0.99856977,1796.7,1796.6,0.501]
[1680451561731,14.35375038,1796.7,1796.6,0.501]
[1680451562831,15.80549848,1796.7,1796.6,0.501]
[1680451570537,14.35375038,1796.7,1796.6,0.49546717]
[1680451570741,2.16637976,1796.7,1796.6,1.37490787]
[1680451570927,2.04268059,1796.7,1796.6,1.43531241]
[1680451571241,1.75052915,1796.7,1796.6,5.26620454]
[1680451571541,0.8748706,1796.7,1796.6,6.42852017]
[1680451573232,0.8748706,1796.7,1796.6,5.42852017]
[1680451577840,0.8748706,1796.7,1796.6,6.42852017]
[1680451578540,0.87565855,1796.9,1796.7,1.0]
[1680451578734,0.87565855,1796.9,1796.8,4.7038]
[1680451579044,0.87565855,1797.0,1796.8,5.63590676]
[1680451579339,0.87565855,1797.0,1796.9,0.496]
[1680451579536,0.87565855,1797.0,1796.9,1.496]
[1680451579936,0.87565855,1797.1,1797.0,0.501]
[1680451580142,1.73570427,1797.2,1797.0,1.001]
[1680451580341,1.73570427,1797.2,1797.1,0.5]
[1680451580542,1.16780999,1797.2,1797.1,0.5]
[1680451582037,1.16780999,1797.2,1797.1,1.5]
[1680451582233,1.16780999,1797.3,1797.1,2.001]
[1680451582432,0.87402779,1797.2,1797.1,1.0]
[1680451582640,0.87402779,1797.2,1797.1,1.5]
[1680451583140,0.87402779,1797.3,1797.1,1.5]
[1680451583348,1.16780999,1797.4,1797.2,4.6998]
[1680451583349,2.04183778,1797.4,1797.2,4.6998]
[1680451583533,0.87402779,1797.4,1797.3,1.002]
[1680451583739,0.87402779,1797.4,1797.3,0.501]
[1680451584138,0.87402779,1797.5,1797.3,1.501]
[1680451584443,0.87402779,1797.5,1797.4,0.496]
[1680451585545,0.87402779,1797.5,1797.1,1.0]
[1680451585748,0.87402779,1797.5,1797.2,0.501]
[1680451585941,0.87402779,1797.4,1797.2,0.501]
[1680451586541,0.87402779,1797.4,1797.3,0.2670391]
[1680451586748,0.87402779,1797.4,1797.2,0.501]
[1680451586948,0.87402779,1797.4,1797.3,0.26702986]
[1680451587446,0.87402779,1797.4,1797.3,0.26702031]
[1680451587639,0.87402779,1797.4,1797.2,0.501]
[1680451588041,0.87402779,1797.4,1797.3,0.26701091]
[1680451588439,0.87402779,1797.4,1797.3,0.76801091]
[1680451589045,0.87402779,1797.4,1797.3,1.26901091]
[1680451589347,0.87402779,1797.5,1797.3,1.26901091]
[1680451589543,0.87402779,1797.4,1797.3,0.76801091]
[1680451589744,0.87402779,1797.4,1797.3,1.26901091]
[1680451589944,0.87402779,1797.5,1797.3,1.26901091]
[1680451590145,0.87402779,1797.5,1797.4,0.501]
[1680451590747,4.37560999,1797.6,1797.4,0.501]
[1680451591147,0.87216308,1797.5,1797.4,0.501]
[1680451592149,0.87216308,1797.5,1797.4,0.662]
[1680451593542,0.87216308,1797.6,1797.4,0.662]
[1680451594350,1.44203905,1797.7,1797.5,1.329]
[1680451594556,1.44203905,1797.7,1797.6,1.665]
[1680451594748,0.87216308,1797.7,1797.6,1.665]
[1680451594947,0.87216308,1797.7,1797.6,0.665]
[1680451597651,0.87216308,1797.8,1797.6,0.665]
[1680451601563,0.87216308,1797.8,1797.7,0.41104523]
[1680451608365,0.87216308,1797.8,1797.7,1.07804523]
[1680451608965,0.87216308,1797.8,1797.7,0.41104523]
[1680451609265,1.43005164,1797.9,1797.7,0.41104523]
[1680451609463,1.43005164,1797.9,1797.6,0.662]
[1680451609864,1.43005164,1797.9,1797.7,0.4108954]
[1680451610960,0.58084253,1797.8,1797.7,0.4108954]
[1680451612167,0.58084253,1797.8,1797.7,1.0778954]
[1680451614562,5.66080561,1797.8,1797.7,0.4108954]
[1680451614769,5.07996308,1797.8,1797.5,0.667]
[1680451615065,3.78902383,1797.8,1797.5,0.667]
[1680451615369,0.58122383,1797.8,1797.5,0.667]
[1680451616268,0.58122383,1797.8,1797.6,0.41077887]
[1680451616469,0.58122383,1797.7,1797.6,0.41077887]
[1680451617768,0.58122383,1797.8,1797.6,1.07577887]
[1680451619069,0.58122383,1797.7,1797.6,1.07577887]
[1680451619568,1.45338691,1797.8,1797.6,1.07577887]
[1680451620059,0.58122383,1798.0,1797.7,7.229]
[1680451620264,0.58122383,1798.0,1797.9,0.66]
[1680451620571,1.45338691,1798.1,1797.9,0.66]
[1680451620869,0.58122383,1798.0,1797.9,1.66]
[1680451621066,0.58122383,1798.0,1797.9,0.66]
[1680451624270,0.58122383,1798.0,1797.9,0.663]
[1680451624470,0.58122383,1798.0,1797.9,1.663]
[1680451624665,0.58122383,1798.0,1797.9,0.663]
[1680451625771,1.45338691,1798.0,1797.9,0.663]
[1680451626576,1.45391946,1798.0,1797.9,0.663]
[1680451627173,1.45392428,1798.0,1797.9,0.663]
[1680451627367,1.45381232,1798.0,1797.9,0.663]
[1680451627772,0.87216308,1798.0,1797.9,0.663]
[1680451628672,1.4539572,1798.0,1797.9,0.663]
[1680451629267,0.58179412,1798.0,1797.9,0.663]
[1680451629666,0.58179412,1798.0,1797.9,3.8708]
[1680451629875,0.58179412,1798.0,1797.9,0.663]
[1680451631375,1.4539572,1798.1,1797.9,4.45023512]
[1680451631573,0.58179412,1798.1,1797.9,4.45023512]
[1680451631775,0.58179412,1798.1,1798.0,1.663]
[1680451631982,0.58179412,1798.2,1798.0,1.663]
[1680451632176,0.58179412,1798.2,1797.9,4.45423512]
[1680451632879,0.58179412,1798.2,1798.0,1.0]
[1680451633579,0.58179412,1798.3,1798.0,1.0]
[1680451633981,0.58179412,1798.3,1798.1,0.663]
[1680451634276,1.4539572,1798.3,1798.1,3.8708]
[1680451635075,0.58179412,1798.2,1797.9,1.24643512]
[1680451635272,1.4539572,1798.3,1797.9,1.24643512]
[1680451635573,0.58179412,1798.3,1798.0,3.2078]
[1680451635880,1.4539572,1798.3,1798.0,3.2078]
[1680451636178,0.58179412,1798.2,1798.1,1.0]
[1680451636378,1.4539572,1798.3,1798.1,1.665]
[1680451636682,0.58179412,1798.3,1798.1,1.665]
[1680451637278,0.58179412,1798.3,1798.1,1.0]
[1680451637875,0.58179412,1798.3,1798.0,3.2078]
[1680451638276,0.58179412,1798.3,1798.1,1.0]
[1680451638583,0.58179412,1798.3,1798.2,0.667]
[1680451643374,1.4539572,1798.4,1798.2,0.667]
[1680451644782,0.58179412,1798.3,1798.2,0.667]
[1680451644974,1.4539572,1798.4,1798.2,0.667]
[1680451645180,0.58179412,1798.3,1798.2,0.667]
[1680451645479,1.4539572,1798.4,1798.2,0.667]
[1680451645678,0.58179412,1798.3,1798.2,0.667]
[1680451646274,0.58179412,1798.3,1798.2,1.408983]
[1680451647687,1.4539572,1798.4,1798.2,4.616783]
[1680451648183,0.58179412,1798.4,1798.2,4.616783]
[1680451648488,1.4539572,1798.4,1798.2,4.616783]
[1680451649583,0.58179412,1798.3,1798.2,4.616783]
[1680451649783,0.58179412,1798.3,1798.2,1.408983]
[1680451651387,0.58179412,1798.3,1798.2,4.616783]
[1680451651578,0.58179412,1798.3,1798.2,1.408983]
[1680451652190,0.58179412,1798.3,1798.2,1.241983]
[1680451655583,1.4539572,1798.3,1798.2,1.241983]
[1680451656996,0.58179412,1798.3,1798.2,1.241983]
[1680451657190,0.58179412,1798.3,1798.2,4.449783]
[1680451657391,0.87216308,1798.3,1798.2,1.241983]
[1680451657591,0.87216308,1798.3,1798.2,1.23615348]
[1680451658787,0.58166383,1798.3,1798.2,1.23615348]
[1680451659391,1.45382691,1798.3,1798.2,1.23615348]
[1680451659581,0.87216308,1798.3,1798.2,1.23615348]
[1680451662088,0.87216308,1798.3,1798.2,0.73615348]
[1680451662295,0.87216308,1798.3,1798.1,3.7078]
[1680451662596,0.58204866,1798.2,1798.1,3.7078]
[1680451663497,1.45421174,1798.2,1798.1,3.7078]
[1680451665200,0.58204866,1798.2,1798.1,3.7078]
[1680451665392,0.58204866,1798.2,1798.1,4.44872967]
[1680451665598,0.87216308,1798.2,1798.1,4.44872967]
[1680451673397,0.87216308,1798.2,1798.1,5.32093973]
[1680451677197,0.87216308,1798.2,1798.1,4.44872967]
[1680451681311,0.87216308,1798.2,1798.1,5.6110453]
[1680451683410,1.16780999,1798.3,1798.1,4.44872967]
[1680451683618,0.87513092,1798.2,1798.1,4.44872967]
[1680451683818,0.87513092,1798.2,1798.1,5.6110453]
[1680451684019,0.87513092,1798.2,1798.1,4.44872967]
[1680451684224,0.87513092,1798.2,1798.1,5.6110453]
[1680451684821,0.87513092,1798.2,1798.1,4.44872967]
[1680451685023,0.87513092,1798.2,1798.1,5.6110453]
[1680451685616,0.87513092,1798.2,1798.1,6.6110453]
[1680451686326,0.87513092,1798.2,1798.1,5.6110453]
[1680451686622,0.87513092,1798.2,1798.1,6.6110453]
[1680451687517,0.87513092,1798.2,1798.1,5.6110453]
[1680451689319,0.87513092,1798.2,1798.1,6.6110453]
[1680451689721,0.87513092,1798.2,1798.1,5.6110453]
[1680451691719,0.87513092,1798.2,1798.1,6.6110453]
[1680451692119,0.87513092,1798.2,1798.1,5.6110453]
[1680451692315,0.58326404,1798.2,1798.1,7.40488278]
[1680451692518,0.58326404,1798.3,1798.1,7.40488278]
[1680451692728,0.58326404,1798.3,1798.2,1.66461488]
[1680451693029,0.58326404,1798.3,1798.2,2.66461488]
[1680451693327,0.58326404,1798.3,1798.2,3.40507119]
[1680451694418,0.87513092,1798.4,1798.2,3.40507119]
[1680451694419,1.45839496,1798.4,1798.3,0.5]
[1680451694618,0.87513092,1798.4,1798.3,5.07901392]
[1680451695821,0.87513092,1798.4,1798.3,6.07901392]
[1680451696429,1.45795192,1798.4,1798.3,6.07901392]
[1680451698317,0.582821,1798.4,1798.3,6.07901392]
[1680451702234,0.582821,1798.4,1798.3,5.57901392]
[1680451703930,0.582821,1798.4,1798.3,4.57901392]
[1680451706327,0.582821,1798.4,1798.3,5.31924492]
[1680451709532,0.582821,1798.4,1798.3,0.740231]
[1680451709834,0.87513092,1798.4,1798.3,0.740231]
[1680451710535,1.87513092,1798.4,1798.3,0.740231]
[1680451710740,1.0,1798.3,1798.1,0.87321392]
[1680451710939,0.58265647,1798.2,1798.0,3.03004852]
[1680451711441,0.58265647,1798.2,1798.1,0.87321392]
[1680451711634,0.58265647,1798.2,1798.0,3.03004852]
[1680451711835,0.58265647,1798.2,1798.1,0.87321392]
[1680451712142,0.58265647,1798.2,1798.0,3.03004852]
[1680451712341,0.58265647,1798.2,1798.1,0.87321392]
[1680451712529,0.58265647,1798.2,1798.1,1.0]
[1680451712733,1.45664118,1798.2,1798.0,3.03004852]
[1680451712933,0.58265647,1798.2,1798.0,3.03004852]
[1680451713144,0.58265647,1798.1,1798.0,3.03004852]
[1680451713345,1.45664118,1798.2,1798.0,3.03004852]
[1680451714148,0.58265647,1798.1,1798.0,3.03004852]
[1680451714347,1.45664118,1798.2,1798.0,3.03004852]
[1680451715449,0.58265647,1798.1,1798.0,3.03004852]
[1680451717759,1.08265647,1798.1,1797.7,4.66395311]
[1680451717959,0.5827647,1797.9,1797.8,0.87345709]
[1680451718455,5.66471175,1798.0,1797.8,1.15890474]
[1680451718653,0.5827647,1797.9,1797.8,1.15890474]
[1680451719060,1.5827647,1797.9,1797.8,1.15890474]
[1680451719259,0.5827647,1798.0,1797.8,1.15890474]
[1680451721361,4.7905647,1798.0,1797.8,1.15890474]
[1680451721753,1.0,1797.9,1797.8,0.28544765]
[1680451722154,1.5,1797.9,1797.8,0.28544765]
[1680451724761,0.5,1797.9,1797.8,0.28544765]
[1680451728461,0.5,1797.9,1797.4,1.45615311]
[1680451728766,1.0,1797.7,1797.5,1.16343182]
[1680451729064,1.0,1797.7,1797.5,1.66343182]
[1680451730465,3.2078,1797.8,1797.5,1.66343182]
[1680451732168,3.2078,1797.8,1797.6,0.497]
[1680451735364,1.5,1798.0,1797.7,0.5]
[1680451735365,3.7078,1798.0,1797.7,0.5]
[1680451735561,3.2078,1798.0,1797.8,0.498]
[1680451736069,3.2078,1798.0,1797.9,0.21394655]
[1680451736474,3.2078,1798.0,1797.8,0.498]
[1680451741063,5.34233243,1798.2,1797.8,0.498]
[1680451742264,5.34233243,1798.2,1797.9,0.5]
[1680451742464,4.34233243,1798.2,1797.9,0.5]
[1680451743175,4.34233243,1798.2,1798.1,0.5]
[1680451743372,3.2078,1798.2,1798.1,0.5]
[1680451744471,0.5827647,1798.3,1798.1,0.5]
[1680451750975,1.16780999,1798.5,1798.2,4.7078]
[1680451751178,1.13192922,1798.7,1798.5,0.496]
[1680451751477,0.58189884,1798.7,1798.6,0.497]
[1680451751684,1.45604589,1798.7,1798.6,0.497]
[1680451751878,0.58189884,1798.7,1798.6,0.497]
[1680451752080,1.45604589,1798.7,1798.6,1.0]
[1680451752286,1.45604589,1798.7,1798.4,0.5]
[1680451752482,0.58189884,1798.6,1798.4,0.5]
[1680451753084,0.496,1798.5,1798.4,1.0]
[1680451753272,0.496,1798.5,1798.3,1.62614147]
[1680451753679,0.496,1798.5,1798.3,0.62614147]
[1680451753982,3.2078,1798.4,1798.1,1.66343182]
[1680451754381,3.7078,1798.4,1798.1,1.16343182]
[1680451754777,3.7078,1798.4,1798.0,1.66243182]
[1680451757883,3.2078,1798.4,1798.2,0.5]
[1680451760282,3.78969884,1798.5,1798.2,0.5]
[1680451760694,0.58189884,1798.5,1798.3,0.496]
[1680451760889,0.58189884,1798.6,1798.3,0.496]
[1680451762186,0.58189884,1798.6,1798.4,0.497]
[1680451762695,4.66384589,1798.7,1798.4,0.497]
[1680451764790,3.78969884,1798.7,1798.4,0.497]
[1680451766490,3.78969884,1798.7,1798.5,0.62354345]
[1680451767995,4.28569884,1798.7,1798.5,0.62354345]
[1680451768296,4.28569884,1798.7,1798.3,0.498]
[1680451769789,3.2078,1798.5,1798.3,0.498]
[1680451771090,4.28569884,1798.7,1798.3,0.498]
[1680451771296,3.2078,1798.5,1798.3,0.498]
[1680451772095,3.2078,1798.5,1798.2,0.497]
[1680451772600,1.07689884,1798.6,1798.2,0.497]
[1680451772792,0.495,1798.6,1798.2,0.497]
[1680451774595,1.07689884,1798.6,1798.2,0.497]
[1680451774997,5.16384589,1798.7,1798.3,0.5]
[1680451775194,3.2078,1798.5,1798.3,0.5]
[1680451777391,3.7058,1798.5,1798.1,0.495]
[1680451777583,3.2078,1798.3,1798.1,0.495]
[1680451781394,3.2078,1798.3,1798.2,0.49984483]
[1680451781705,3.2078,1798.3,1798.1,0.495]
[1680451782800,3.78969884,1798.3,1798.1,0.495]
[1680451782994,4.28969884,1798.3,1798.0,1.16343182]
[1680451783201,3.2078,1798.1,1798.0,1.16343182]
[1680451788616,4.8344824,1798.3,1798.0,1.16343182]
[1680451789523,5.70862945,1798.3,1798.0,1.16343182]
[1680451790525,3.2078,1798.1,1798.0,1.16343182]
[1680451791321,4.8344824,1798.3,1798.0,1.16343182]
[1680451791722,5.70862945,1798.3,1798.0,1.16343182]
[1680451793326,5.70862945,1798.3,1798.1,1.16343182]
[1680451793521,5.70862945,1798.3,1798.0,1.16343182]
[1680451793722,0.58189884,1798.2,1798.1,1.16343182]
[1680451794625,5.70862945,1798.3,1798.1,1.16343182]
[1680451795228,0.58189884,1798.2,1798.1,1.16343182]
[1680451796425,0.58189884,1798.2,1798.1,1.66302167]
[1680451797126,2.36914705,1798.2,1798.1,0.49958985]
[1680451797329,2.66280999,1798.2,1798.1,0.49958985]
[1680451797526,2.66280999,1798.2,1797.9,1.16343182]
[1680451797832,3.79071076,1798.0,1797.9,1.16343182]